bitfinex-derivatives/quotes_SOLF0:USTF0_20250404
["timestamp","ask_amount","ask_price","bid_price","bid_amount"]
[1743733246174,2.1939,116.3,116.28,0.05649855]
[1743733246381,0.05470997,116.31,116.29,8.602]
[1743733247376,0.05470997,116.31,116.28,17.57799188]
[1743733247777,8.65600997,116.31,116.28,17.57799188]
[1743733248282,8.65600997,116.31,116.28,8.65939855]
[1743733248583,0.05470997,116.31,116.28,8.65939855]
[1743733249683,8.65590997,116.31,116.28,0.05649855]
[1743733250784,8.91859333,116.29,116.18,17.2199]
[1743733251083,2.2956,116.28,116.23,8.91859333]
[1743733251279,10.8993,116.28,116.23,17.52509333]
[1743733251878,0.05917528,116.27,116.24,8.66212767]
[1743733252176,8.66327528,116.27,116.24,0.05612767]
[1743733252985,0.05917528,116.27,116.24,0.05612767]
[1743733253178,2.43417528,116.27,116.24,0.05612767]
[1743733253885,2.43417528,116.27,116.24,62.05612767]
[1743733254375,11.03857528,116.27,116.24,62.05612767]
[1743733254781,2.43417528,116.27,116.24,62.05612767]
[1743733254979,8.6048,116.26,116.24,62.05612767]
[1743733255883,8.6048,116.26,116.24,0.05612767]
[1743733257283,8.6054,116.25,116.24,0.05612767]
[1743733258186,45.89859333,116.25,116.19,8.91859333]
[1743733258382,45.89859333,116.25,116.18,8.91859333]
[1743733258383,8.91859333,116.23,116.18,8.91859333]
[1743733258581,36.98,116.22,116.17,8.91859333]
[1743733258778,8.6098,116.19,116.18,62.0]
[1743733259687,8.97447355,116.2,116.17,0.06333893]
[1743733260188,8.6105,116.19,116.17,0.06333893]
[1743733260482,0.05588022,116.2,116.17,8.98193226]
[1743733260688,0.05588022,116.2,116.19,8.91859333]
[1743733260889,8.6064,116.24,116.19,8.91859333]
[1743733261186,36.98,116.25,116.21,8.91859333]
[1743733261387,36.98,116.25,116.2,8.6087]
[1743733261584,36.98,116.25,116.21,8.91859333]
[1743733261984,8.6063,116.24,116.21,17.52689333]
[1743733262184,8.66864766,116.24,116.22,0.06294168]
[1743733262584,8.66864766,116.24,116.22,62.06294168]
[1743733262790,0.06234766,116.24,116.22,62.06294168]
[1743733263088,0.06234766,116.24,116.23,8.91859333]
[1743733263887,0.06234766,116.24,116.22,0.06294168]
[1743733264185,8.66884766,116.24,116.22,0.06294168]
[1743733264384,0.06234766,116.24,116.22,0.06294168]
[1743733265180,8.6069,116.23,116.22,0.06294168]
[1743733265781,8.6085,116.21,116.18,8.6105]
[1743733266179,36.98,116.22,116.18,8.6105]
[1743733266686,8.6083,116.21,116.18,70.6105]
[1743733266987,8.66522045,116.21,116.18,70.66982248]
[1743733267185,8.66522045,116.21,116.19,8.6098]
[1743733267784,0.05692045,116.21,116.18,62.05932248]
[1743733268290,0.05692045,116.21,116.18,70.66952248]
[1743733270596,0.05692045,116.21,116.19,8.6098]
[1743733270790,0.05692045,116.21,116.18,62.05932248]
[1743733272696,8.6092,116.2,116.18,62.05932248]
[1743733273396,0.05692045,116.21,116.18,62.05932248]
[1743733273995,8.66572045,116.21,116.18,62.05932248]
[1743733274195,0.05692045,116.21,116.18,62.05932248]
[1743733274397,0.05692045,116.21,116.18,0.05932248]
[1743733274894,8.6094,116.2,116.18,0.05932248]
[1743733275301,0.05692045,116.21,116.18,0.05932248]
[1743733275503,36.96,116.2,116.18,0.05932248]
[1743733276003,0.05692045,116.21,116.18,8.66962248]
[1743733276300,0.05692045,116.21,116.18,0.05932248]
[1743733276501,8.66552045,116.21,116.18,8.66942248]
[1743733276697,8.66552045,116.21,116.18,0.05932248]
[1743733277204,0.05692045,116.21,116.18,0.05932248]
[1743733277409,0.05692045,116.21,116.19,62.0]
[1743733277702,0.05692045,116.21,116.19,70.6098]
[1743733277906,8.66522045,116.21,116.19,70.6098]
[1743733278098,8.66522045,116.21,116.19,62.0]
[1743733278603,0.05692045,116.21,116.19,62.0]
[1743733279599,8.66532045,116.21,116.19,62.0]
[1743733279801,0.05692045,116.21,116.19,62.0]
[1743733280404,0.05692045,116.21,116.19,70.6097]
[1743733281105,0.05692045,116.21,116.18,0.05932248]
[1743733282001,8.6094,116.2,116.18,0.05932248]
[1743733282400,36.99692045,116.21,116.18,0.05932248]
[1743733284804,13.94919931,116.2,116.09,13.94919931]
[1743733285007,13.94919931,116.18,116.09,13.94919931]
[1743733285305,39.3124,116.17,116.11,13.94919931]
[1743733285508,39.3124,116.17,116.11,50.88919931]
[1743733286007,0.06351208,116.15,116.14,8.6132]
[1743733286207,0.06351208,116.15,116.13,0.06588012]
[1743733286403,0.06351208,116.15,116.13,8.67978012]
[1743733286608,0.06351208,116.15,116.13,0.06588012]
[1743733287109,0.06351208,116.15,116.14,8.6135]
[1743733287606,0.06351208,116.15,116.14,70.6135]
[1743733290308,0.06351208,116.15,116.14,62.0]
[1743733290816,0.06351208,116.15,116.13,0.06588012]
[1743733291511,8.67661208,116.15,116.13,0.06588012]
[1743733293013,8.6135,116.14,116.13,0.06588012]
[1743733293308,0.06351208,116.15,116.13,0.06588012]
[1743733294109,0.06351208,116.15,116.07,13.94919931]
[1743733294305,36.92,116.14,116.06,37.5515]
[1743733294804,36.92,116.14,116.08,8.6177]
[1743733295012,50.86919931,116.14,116.05,13.94919931]
[1743733295207,50.86919931,116.14,116.01,537.08]
[1743733295208,13.94919931,116.12,116.02,14.64209931]
[1743733295412,36.97431164,116.11,116.08,0.06525709]
[1743733295703,41.3128,116.11,116.04,8.6206]
[1743733295910,41.37699487,116.11,116.02,13.94919931]
[1743733296103,41.3128,116.11,116.02,13.94919931]
[1743733296303,13.94919931,116.1,116.02,13.94919931]
[1743733296711,41.3128,116.11,116.02,13.94919931]
[1743733296911,0.06147223,116.07,116.05,0.06320488]
[1743733299118,0.06147223,116.07,115.99,14.77589931]
[1743733299313,0.06147223,116.07,115.98,13.94919931]
[1743733299516,8.6206,116.05,115.98,13.94919931]
[1743733299721,8.6206,116.05,115.99,36.92]
[1743733299921,50.86919931,116.08,115.98,13.94919931]
[1743733299922,50.86919931,116.08,115.98,50.86919931]
[1743733300123,50.86919931,116.08,116.0,8.6236]
[1743733300423,0.06288202,116.04,116.01,62.0]
[1743733301422,8.6217,116.03,116.01,62.0]
[1743733301923,8.68438202,116.04,116.01,62.0]
[1743733302124,0.06288202,116.04,116.01,62.0]
[1743733302319,0.06288202,116.04,115.98,36.94]
[1743733302524,0.06288202,116.04,115.99,8.6246]
[1743733302525,8.6225,116.02,115.99,8.6246]
[1743733302828,36.94,116.05,115.99,8.6246]
[1743733303020,0.05413417,116.02,115.99,8.6246]
[1743733303216,0.05413417,116.02,115.89,25.8943]
[1743733303217,0.05413417,116.02,115.94,36.92]
[1743733303425,36.92,116.02,115.94,50.86919931]
[1743733303625,0.05431624,115.99,115.97,8.6254]
[1743733303824,0.05431624,115.99,115.97,36.94]
[1743733304219,0.05431624,115.99,115.98,8.6254]
[1743733305431,0.05431624,115.99,115.98,70.6254]
[1743733309932,0.05431624,115.99,115.98,62.0]
[1743733310627,0.05431624,115.99,115.98,70.6254]
[1743733312129,55.24959931,116.06,116.01,8.6231]
[1743733312634,8.6205,116.05,116.01,8.6231]
[1743733312827,55.24959931,116.06,116.01,8.6231]
[1743733313026,0.05648985,116.05,116.02,0.05594837]
[1743733313223,8.621,116.04,116.02,0.05594837]
[1743733313531,0.05648985,116.05,116.02,0.05594837]
[1743733314727,0.05648985,116.05,116.02,8.67794837]
[1743733315230,0.05648985,116.05,116.03,8.6216]
[1743733315431,0.05648985,116.05,116.02,0.05594837]
[1743733316234,8.6212,116.04,116.02,0.05594837]
[1743733317237,0.05648985,116.05,116.02,0.05594837]
[1743733317736,8.6217,116.03,116.02,0.05594837]
[1743733318440,8.6235,116.01,115.98,98.92]
[1743733318641,13.94919931,116.02,115.94,36.92]
[1743733319047,8.6242,116.0,115.97,8.6259]
[1743733319741,8.6248,115.99,115.96,8.6264]
[1743733320134,0.05759896,115.99,115.95,36.92]
[1743733320335,0.05759896,115.99,115.95,50.86919931]
[1743733320740,0.05759896,115.99,115.98,8.6254]
[1743733320939,0.05759896,115.99,115.98,45.5454]
[1743733321642,0.05759896,115.99,115.98,107.5454]
[1743733323242,50.86919931,116.04,115.98,98.92]
[1743733323243,36.92,116.04,115.98,98.92]
[1743733323542,8.6211,116.04,115.98,98.92]
[1743733324341,0.06411889,116.02,116.01,8.6232]
[1743733324940,0.06411889,116.02,116.0,8.68109896]
[1743733325644,0.06411889,116.02,116.01,8.6232]
[1743733326542,0.06411889,116.02,116.0,8.68129896]
[1743733326946,0.06411889,116.02,116.0,0.05759896]
[1743733327247,0.06411889,116.02,116.01,8.6232]
[1743733329452,0.06411889,116.02,116.0,8.68109896]
[1743733329849,0.06411889,116.02,116.0,0.05759896]
[1743733330042,0.06411889,116.02,116.01,8.6232]
[1743733330947,8.6183,116.08,116.0,36.95759896]
[1743733331151,8.6183,116.08,116.01,13.94919931]
[1743733331451,8.6183,116.08,116.05,8.6198]
[1743733331753,69.5928675,116.11,116.03,50.84919931]
[1743733331949,69.5928675,116.11,116.04,36.9]
[1743733332149,0.05901937,116.08,116.07,8.6183]
[1743733332751,0.05901937,116.08,116.06,8.67389948]
[1743733333149,0.05901937,116.08,116.06,0.05459948]
[1743733333848,8.6187,116.07,116.06,0.05459948]
[1743733334353,0.05901937,116.08,116.06,0.05459948]
[1743733334751,8.6187,116.07,116.06,0.05459948]
[1743733335353,8.67731937,116.08,116.06,0.05459948]
[1743733335849,8.6187,116.07,116.06,0.05459948]
[1743733336153,0.05901937,116.08,116.06,0.05459948]
[1743733337052,36.93901937,116.08,116.0,36.88]
[1743733337352,36.88,116.08,116.0,36.88]
[1743733337556,8.6191,116.07,116.0,36.88]
[1743733337852,36.88,116.08,116.0,36.88]
[1743733338055,8.6195,116.06,116.03,8.6214]
[1743733338258,0.05603202,116.05,116.03,8.68093842]
[1743733340056,8.67663202,116.05,116.03,0.05953842]
[1743733341056,0.05603202,116.05,116.03,8.68113842]
[1743733341758,8.67663202,116.05,116.03,8.68113842]
[1743733341959,8.67663202,116.05,116.03,0.05953842]
[1743733342760,8.67663202,116.05,116.03,8.68113842]
[1743733342958,8.67663202,116.05,116.03,0.05953842]
[1743733343148,8.6209,116.04,116.03,0.05953842]
[1743733343356,50.86523133,116.05,115.98,98.86]
[1743733343657,8.6242,116.0,115.98,62.0]
[1743733344255,8.6235,116.01,115.98,62.0]
[1743733344460,0.06100252,116.0,115.98,70.6249]
[1743733345257,8.68510252,116.0,115.98,62.0]
[1743733345857,8.6247,115.99,115.98,62.0]
[1743733346059,0.06100252,116.0,115.98,62.0]
[1743733346562,8.68520252,116.0,115.97,8.6259]
[1743733346962,0.06100252,116.0,115.97,8.6259]
[1743733347161,0.06100252,116.0,115.98,8.6252]
[1743733347655,0.06100252,116.0,115.97,8.6257]
[1743733347858,0.06100252,116.0,115.95,36.86]
[1743733349263,0.06100252,116.0,115.98,8.6249]
[1743733349458,0.06100252,116.0,115.95,36.86]
[1743733349665,0.06100252,116.0,115.99,62.0]
[1743733350463,0.06100252,116.0,115.95,36.86]
[1743733351063,0.06100252,116.0,115.97,8.6261]
[1743733351268,0.06100252,116.0,115.95,36.86]
[1743733351565,0.06100252,116.0,115.98,8.6249]
[1743733352263,0.06100252,116.0,115.99,8.6247]
[1743733353461,0.06100252,116.0,115.99,70.6247]
[1743733356866,2.196,116.04,116.02,8.6219]
[1743733357267,10.8172,116.04,116.02,8.6219]
[1743733357466,10.8172,116.04,116.01,8.6225]
[1743733357766,2.196,116.04,115.98,50.85250266]
[1743733358069,2.25423734,116.04,116.02,8.622]
[1743733358865,10.87533734,116.04,116.02,8.622]
[1743733359167,0.05823734,116.04,116.03,8.6217]
[1743733360668,0.05823734,116.04,116.03,70.6217]
[1743733361967,0.05823734,116.04,116.03,62.0]
[1743733364763,0.05823734,116.04,116.03,70.6217]
[1743733367761,2.3194,116.1,116.03,70.95585967]
[1743733367961,47.6992,116.11,116.06,8.95585967]
[1743733368161,10.8992,116.11,116.07,8.95585967]
[1743733368371,10.8992,116.11,116.08,8.6177]
[1743733368765,2.283,116.11,116.08,8.95585967]
[1743733369067,2.34507616,116.11,116.08,17.63776351]
[1743733369273,10.96087616,116.11,116.08,17.63776351]
[1743733369462,2.34507616,116.11,116.09,8.6172]
[1743733370273,2.34507616,116.11,116.08,17.63776351]
[1743733370470,10.96137616,116.11,116.08,17.63776351]
[1743733371672,10.96137616,116.11,116.08,8.68190384]
[1743733371870,0.06207616,116.11,116.08,0.06440384]
[1743733372872,8.67787616,116.11,116.08,8.68200384]
[1743733373675,0.06207616,116.11,116.09,8.6171]
[1743733374175,0.06207616,116.11,116.1,8.6165]
[1743733376076,0.06207616,116.11,116.1,45.3765]
[1743733376268,0.06207616,116.11,116.1,59.36164728]
[1743733378170,2.25,116.17,116.1,50.74514728]
[1743733378376,20.67174728,116.21,116.12,13.98514728]
[1743733378674,20.67174728,116.21,116.16,8.6114]
[1743733379069,6.6866,116.21,116.14,13.98514728]
[1743733379378,0.06163435,116.19,116.18,8.6102]
[1743733382468,0.06163435,116.19,116.18,22.59534728]
[1743733382973,4.517,116.24,116.22,8.6073]
[1743733383778,10.7999,116.25,116.21,8.608]
[1743733384078,8.6062,116.24,116.19,36.74]
[1743733384273,0.06033719,116.24,116.22,0.06094465]
[1743733384478,14.04548447,116.24,116.16,36.72]
[1743733384672,8.6094,116.2,116.16,36.72]
[1743733384877,50.70514728,116.24,116.16,36.72]
[1743733385080,8.6102,116.19,116.16,36.72]
[1743733385479,50.70514728,116.24,116.16,36.72]
[1743733385681,0.05869589,116.19,116.16,36.78339749]
[1743733385985,0.05869589,116.19,116.16,36.7828326]
[1743733386174,0.05869589,116.19,116.16,107.3947326]
[1743733386883,0.05869589,116.19,116.16,98.7828326]
[1743733387086,0.05869589,116.19,116.16,62.0628326]
[1743733388084,8.66889589,116.19,116.16,62.0628326]
[1743733389286,0.05869589,116.19,116.16,70.6743326]
[1743733389985,8.66899589,116.19,116.16,62.0628326]
[1743733390181,0.05869589,116.19,116.16,0.0628326]
[1743733390591,0.05869589,116.19,116.12,45.3147]
[1743733390886,16.14604728,116.2,116.12,45.3147]
[1743733391093,8.6124,116.16,116.12,45.3147]
[1743733391294,8.6124,116.16,116.13,8.6142]
[1743733391594,36.7,116.18,116.13,8.6142]
[1743733391790,0.05820954,116.16,116.13,8.669859]
[1743733392491,8.67030954,116.16,116.13,0.055659]
[1743733392693,0.05820954,116.16,116.13,0.055659]
[1743733393191,0.05820954,116.16,116.13,62.055659]
[1743733393495,8.6131,116.15,116.13,62.055659]
[1743733394497,8.6131,116.15,116.13,0.055659]
[1743733395394,0.05820954,116.16,116.13,0.055659]
[1743733395596,0.05820954,116.16,116.13,36.755659]
[1743733395798,0.05820954,116.16,116.13,50.74080628]
[1743733396094,0.05820954,116.16,116.14,8.6135]
[1743733396399,0.05820954,116.16,116.13,59.35470628]
[1743733396594,0.05820954,116.16,116.13,50.74080628]
[1743733396998,0.05820954,116.16,116.14,8.6131]
[1743733397395,0.05820954,116.16,116.13,36.755659]
[1743733397595,0.05820954,116.16,116.14,62.0]
[1743733397797,0.05820954,116.16,116.13,36.755659]
[1743733397997,0.05820954,116.16,116.13,0.055659]
[1743733398299,8.67070954,116.16,116.13,0.055659]
[1743733399595,0.05820954,116.16,116.13,0.055659]
[1743733400193,8.6132,116.15,116.13,0.055659]
[1743733400400,0.05820954,116.16,116.13,0.055659]
[1743733400599,8.6128,116.15,116.13,0.055659]
[1743733400793,0.05820954,116.16,116.13,0.055659]
[1743733401199,8.6135,116.14,116.13,0.055659]
[1743733401601,13.0156,116.15,116.13,0.055659]
[1743733402000,4.4026,116.15,116.13,0.055659]
[1743733402501,4.4026,116.15,116.05,538.1611]
[1743733402502,55.06774728,116.15,116.06,13.98514728]
[1743733402802,55.06774728,116.15,116.06,50.66514728]
[1743733403003,13.98514728,116.13,116.04,13.98514728]
[1743733403205,36.68,116.12,116.04,50.66514728]
[1743733403405,13.98514728,116.11,116.02,50.66514728]
[1743733403601,0.05920805,116.09,116.07,0.06287516]
[1743733403803,36.73920805,116.09,116.03,8.6212]
[1743733403998,50.72435533,116.09,116.03,8.6212]
[1743733404403,50.72435533,116.09,116.04,8.6209]
[1743733404602,50.66514728,116.09,116.04,8.6209]
[1743733404804,50.66514728,116.09,116.03,8.6211]
[1743733405002,0.0548356,116.08,116.01,36.68]
[1743733405202,50.66514728,116.09,116.01,36.68]
[1743733405399,0.06015617,116.06,116.03,8.6214]
[1743733405805,0.06015617,116.06,116.02,62.0]
[1743733406007,36.74015617,116.06,116.02,62.0]
[1743733406510,8.6206,116.05,116.02,62.0]
[1743733406710,36.74015617,116.06,116.02,62.0]
[1743733407009,36.74015617,116.06,115.99,36.68]
[1743733407399,13.98514728,116.05,115.95,551.26514728]
[1743733407599,0.05662153,116.04,115.96,36.68]
[1743733407805,2.3529,116.04,115.96,36.68]
[1743733408010,0.05464348,116.01,115.98,8.6248]
[1743733408409,0.05464348,116.01,115.96,36.68]
[1743733408610,0.05464348,116.01,115.99,8.6246]
[1743733409708,0.05464348,116.01,116.0,8.6239]
[1743733417619,0.05464348,116.01,116.0,70.6239]
[1743733420724,0.05464348,116.01,116.0,8.6239]
[1743733421121,0.05464348,116.01,115.99,8.6242]
[1743733421319,0.05464348,116.01,115.95,551.26514728]
[1743733421519,0.05464348,116.01,115.96,36.68]
[1743733421921,0.05464348,116.01,116.0,8.6239]
[1743733423426,0.05464348,116.01,115.99,8.6243]
[1743733423824,0.05464348,116.01,115.96,36.68]
[1743733424024,0.05464348,116.01,115.98,8.6251]
[1743733425527,8.67784348,116.01,115.97,8.6257]
[1743733425726,0.05464348,116.01,115.97,8.6257]
[1743733426131,8.67784348,116.01,115.97,8.6257]
[1743733426332,0.05464348,116.01,115.98,8.6253]
[1743733426724,0.05464348,116.01,115.98,70.6253]
[1743733427236,50.71979076,116.01,115.91,13.98514728]
[1743733427533,13.98514728,115.99,115.93,8.6285]
[1743733427726,0.05974505,115.97,115.89,13.98514728]
[1743733427925,8.6277,115.95,115.9,36.66]
[1743733428132,0.05913349,115.94,115.93,8.6291]
[1743733428329,2.2659,115.98,115.91,13.98514728]
[1743733428534,0.06138798,115.95,115.94,8.6284]
[1743733430035,0.06138798,115.95,115.94,70.6284]
[1743733432635,0.06138798,115.95,115.94,62.0]
[1743733432828,0.06138798,115.95,115.91,50.64514728]
[1743733433025,0.06138798,115.95,115.93,8.6291]
[1743733433231,2.2659,115.98,115.93,8.6291]
[1743733433529,0.06564035,115.95,115.9,36.66]
[1743733433741,0.06564035,115.95,115.89,13.98514728]
[1743733433930,0.06564035,115.95,115.9,36.66]
[1743733434540,0.06564035,115.95,115.94,8.6284]
[1743733434743,0.06564035,115.95,115.9,36.66]
[1743733435735,0.06564035,115.95,115.94,8.6284]
[1743733444935,0.06564035,115.95,115.91,62.0]
[1743733445641,14.05078763,115.95,115.89,8.6315]
[1743733445842,8.6296,115.93,115.88,36.64]
[1743733446038,8.6296,115.93,115.9,8.631]
[1743733446240,0.06204288,115.92,115.9,8.631]
[1743733446439,8.69224288,115.92,115.87,13.98514728]
[1743733446743,8.69224288,115.92,115.88,8.6322]
[1743733447739,8.6309,115.91,115.87,8.6331]
[1743733448341,50.62514728,115.91,115.82,36.64]
[1743733448644,50.62514728,115.91,115.83,62.0]
[1743733448645,4.3993,115.9,115.83,62.0]
[1743733448847,0.05547505,115.88,115.85,8.6345]
[1743733449647,8.68857505,115.88,115.85,8.6345]
[1743733449948,8.68857505,115.88,115.84,8.6354]
[1743733450147,8.68857505,115.88,115.82,36.64]
[1743733450945,0.05547505,115.88,115.85,8.6346]
[1743733451342,0.05547505,115.88,115.82,36.64]
[1743733451943,0.05547505,115.88,115.83,62.0]
[1743733452839,0.05547505,115.88,115.85,8.6347]
[1743733453246,8.68837505,115.88,115.82,36.64]
[1743733453444,0.05547505,115.88,115.83,8.6364]
[1743733453644,8.634,115.87,115.83,8.6364]
[1743733454750,8.6344,115.86,115.83,8.6364]
[1743733455243,0.06469619,115.86,115.83,8.6364]
[1743733455550,0.06469619,115.86,115.84,8.6357]
[1743733455845,8.69909619,115.86,115.83,8.6362]
[1743733456251,0.06469619,115.86,115.82,62.0]
[1743733456551,8.6355,115.85,115.82,70.637]
[1743733456950,0.06469619,115.86,115.82,62.0]
[1743733457151,0.06469619,115.86,115.84,8.6355]
[1743733458053,0.06469619,115.86,115.83,8.6361]
[1743733458449,0.06469619,115.86,115.82,62.0]
[1743733458654,8.6354,115.85,115.82,62.0]
[1743733459053,8.6359,115.84,115.81,8.6375]
[1743733459451,8.69818061,115.84,115.81,8.6375]
[1743733459754,8.69818061,115.84,115.78,0.8878]
[1743733459956,8.69818061,115.84,115.77,50.76604728]
[1743733460154,8.6359,115.84,115.77,50.76604728]
[1743733460352,0.0625224,115.82,115.77,50.76604728]
[1743733460949,0.0625224,115.82,115.8,8.6384]
[1743733461149,0.0625224,115.82,115.75,13.98514728]
[1743733461352,8.6386,115.81,115.77,8.6404]
[1743733461656,0.06106602,115.8,115.74,50.62514728]
[1743733462058,0.06106602,115.8,115.75,62.0]
[1743733462663,0.06106602,115.8,115.79,8.6396]
[1743733463866,0.06106602,115.8,115.78,8.6399]
[1743733464068,0.06106602,115.8,115.75,98.64]
[1743733464465,0.06106602,115.8,115.78,8.6398]
[1743733468371,0.06106602,115.8,115.75,62.0]
[1743733468671,0.06106602,115.8,115.75,98.64]
[1743733468867,8.70016602,115.8,115.76,8.6414]
[1743733469868,8.6397,115.79,115.76,8.6414]
[1743733470070,8.6397,115.79,115.75,8.6421]
[1743733470271,2.24536602,115.8,115.75,8.6421]
[1743733470468,8.70094505,115.78,115.75,8.6421]
[1743733471169,0.06064505,115.78,115.7,36.62]
[1743733471370,2.2834,115.77,115.7,36.62]
[1743733471570,8.6428,115.75,115.72,8.6445]
[1743733471770,0.05968315,115.75,115.7,36.62]
[1743733471971,0.05968315,115.75,115.71,62.0]
[1743733472170,0.05968315,115.75,115.73,8.6434]
[1743733472371,0.05968315,115.75,115.71,62.0]
[1743733474174,8.644,115.74,115.71,62.0]
[1743733474674,8.644,115.74,115.71,70.6453]
[1743733475475,0.05968315,115.75,115.72,8.6445]
[1743733475975,0.05968315,115.75,115.71,62.0]
[1743733476474,8.70228315,115.75,115.72,8.6444]
[1743733476977,8.70228315,115.75,115.71,62.0]
[1743733477175,8.6435,115.74,115.71,62.0]
[1743733477676,8.6435,115.74,115.71,70.6452]
[1743733477969,0.05968315,115.75,115.71,62.0]
[1743733477970,8.70248315,115.75,115.71,62.0]
[1743733478369,8.70248315,115.75,115.71,70.6452]
[1743733478570,0.05968315,115.75,115.71,70.6452]
[1743733478775,0.05968315,115.75,115.71,62.0]
[1743733478972,0.05968315,115.75,115.71,70.6452]
[1743733479476,8.6435,115.74,115.71,70.6452]
[1743733479971,8.6435,115.74,115.71,62.0]
[1743733480180,8.6444,115.73,115.71,62.0]
[1743733481275,8.6437,115.74,115.71,62.0]
[1743733482080,2.25828315,115.75,115.71,62.0]
[1743733482581,8.6438,115.74,115.71,70.6454]
[1743733483384,8.6438,115.74,115.71,62.0]
[1743733483981,8.6441,115.73,115.71,62.0]
[1743733485276,8.6436,115.74,115.71,70.6455]
[1743733485884,2.25828315,115.75,115.71,62.0]
[1743733486286,8.6439,115.74,115.71,62.0]
[1743733486482,2.25828315,115.75,115.71,62.0]
[1743733487087,8.6434,115.74,115.71,62.0]
[1743733487292,2.25828315,115.75,115.71,62.0]
[1743733487984,8.6444,115.73,115.71,62.0]
[1743733488187,2.25828315,115.75,115.71,62.0]
[1743733488589,8.6448,115.72,115.66,50.58514728]
[1743733489093,0.06183112,115.7,115.68,8.6473]
[1743733489687,0.06183112,115.7,115.67,8.648]
[1743733490086,0.06183112,115.7,115.66,9.01462182]
[1743733490287,0.06183112,115.7,115.67,9.01462182]
[1743733490590,0.06183112,115.7,115.68,8.6471]
[1743733491590,0.06183112,115.7,115.68,70.6471]
[1743733492292,0.06183112,115.7,115.68,62.0]
[1743733492989,0.06183112,115.7,115.68,70.6474]
[1743733493590,0.06183112,115.7,115.68,62.0]
[1743733494388,0.06183112,115.7,115.68,70.6476]
[1743733494693,8.70833112,115.7,115.68,62.0]
[1743733494892,0.06183112,115.7,115.68,62.0]
[1743733495092,8.70813112,115.7,115.68,62.0]
[1743733497394,0.06183112,115.7,115.68,62.0]
[1743733497594,0.06183112,115.7,115.68,70.6477]
[1743733499001,0.06183112,115.7,115.68,62.0]
[1743733499194,8.70823112,115.7,115.68,62.0]
[1743733500200,0.06183112,115.7,115.68,62.0]
[1743733500800,8.70813112,115.7,115.68,62.0]
[1743733501099,9.01462182,115.69,115.62,36.58]
[1743733501301,9.01462182,115.68,115.63,9.01462182]
[1743733501494,8.70657017,115.67,115.64,8.6507]
[1743733501700,0.05757017,115.67,115.63,9.01462182]
[1743733501893,0.05757017,115.67,115.64,9.01462182]
[1743733502093,0.05757017,115.67,115.66,8.6493]
[1743733502596,0.05757017,115.67,115.65,8.6495]
[1743733502897,0.05757017,115.67,115.64,45.59462182]
[1743733503302,0.05757017,115.67,115.64,36.58]
[1743733503501,0.05757017,115.67,115.64,45.59462182]
[1743733503799,0.05757017,115.67,115.66,8.6493]
[1743733504000,0.05757017,115.67,115.66,70.6493]
[1743733506095,0.05757017,115.67,115.66,62.0]
[1743733506300,0.05757017,115.67,115.63,9.01462182]
[1743733506497,17.72129199,115.67,115.63,9.01462182]
[1743733506704,17.72129199,115.67,115.64,8.6504]
[1743733508506,0.05757017,115.67,115.65,8.6497]
[1743733509408,8.70617017,115.67,115.64,70.6505]
[1743733511806,0.05757017,115.67,115.65,8.6499]
[1743733512002,0.05757017,115.67,115.64,62.0]
[1743733512701,0.05757017,115.67,115.63,9.01462182]
[1743733512910,9.07219199,115.67,115.63,8.651]
[1743733513505,0.05757017,115.67,115.64,8.6507]
[1743733513808,8.70657017,115.67,115.62,9.01462182]
[1743733514009,8.70657017,115.67,115.64,8.6507]
[1743733514806,8.6494,115.66,115.64,8.6507]
[1743733515009,0.05757017,115.67,115.63,8.6513]
[1743733515207,9.07219199,115.67,115.63,8.6513]
[1743733515709,8.6498,115.66,115.64,70.6506]
[1743733515910,9.07219199,115.67,115.64,70.6506]
[1743733516213,17.72109199,115.67,115.64,70.6506]
[1743733516709,9.07219199,115.67,115.64,62.0]
[1743733517311,8.6495,115.66,115.64,62.0]
[1743733517510,9.07219199,115.67,115.64,62.0]
[1743733517714,17.72099199,115.67,115.64,70.6504]
[1743733518413,9.07219199,115.67,115.64,62.0]
[1743733518814,17.72099199,115.67,115.64,70.6505]
[1743733519515,17.72099199,115.67,115.64,62.0]